bitfinex/quotes_BTCUSD_20220109
["timestamp","ask_amount","ask_price","bid_price","bid_amount"]
[1641688491861,1.27656814,41529.0,41528.0,0.00036244]
[1641688492325,0.15214636,41528.0,41517.0,0.000696]
[1641688492524,0.060234,41519.0,41517.0,0.000696]
[1641688492725,0.6473,41518.0,41517.0,0.000696]
[1641688492925,1.02395238,41518.0,41517.0,0.000696]
[1641688493324,0.87916977,41518.0,41517.0,0.000696]
[1641688493922,0.87916977,41518.0,41517.0,0.00110234]
[1641688494525,4.4329272,41518.0,41517.0,0.00110234]
[1641688495826,4.13119182,41518.0,41517.0,0.00110234]
[1641688496666,4.14519182,41518.0,41517.0,0.00110234]
[1641688497268,4.14519182,41518.0,41517.0,0.00105622]
[1641688497467,0.148217,41518.0,41517.0,0.00105622]
[1641688497668,0.0613,41518.0,41517.0,0.00105622]
[1641688497868,0.086917,41518.0,41517.0,0.00105622]
[1641688498067,0.312,41521.0,41517.0,0.00105622]
[1641688498267,0.086917,41520.0,41517.0,0.00140177]
[1641688498469,0.31480871,41524.0,41517.0,0.00104155]
[1641688498668,0.41888866,41521.0,41517.0,0.00104155]
[1641688499068,0.060222,41520.0,41517.0,0.00104155]
[1641688499467,0.060222,41520.0,41518.0,0.00034553]
[1641688499668,0.41888866,41521.0,41518.0,0.00034553]
[1641688499919,0.054,41521.0,41518.0,0.00034553]
[1641688500522,0.0012131,41528.0,41519.0,0.00034552]
[1641688500722,0.37480408,41528.0,41519.0,0.00034552]
[1641688500925,0.71908021,41528.0,41519.0,0.00034552]
[1641688501128,0.060215,41525.0,41519.0,0.00034552]
[1641688501327,0.68379056,41528.0,41523.0,0.32884185]
[1641688501524,0.34427613,41528.0,41523.0,0.32884185]
[1641688501725,0.18634489,41531.0,41523.0,0.32919566]
[1641688501927,0.06592089,41531.0,41523.0,0.37919566]
[1641688502126,0.06592089,41531.0,41523.0,0.32919566]
[1641688502324,0.060206,41531.0,41523.0,0.32919566]
[1641688502526,0.120414,41534.0,41525.0,0.26235878]
[1641688502527,0.30110534,41533.0,41525.0,0.26235878]
[1641688502725,0.33998664,41532.0,41525.0,0.32256699]
[1641688503327,0.060211,41527.0,41525.0,0.06020821]
[1641688503572,0.060211,41527.0,41524.0,0.018063]
[1641688504372,0.060211,41527.0,41525.0,0.28919799]
[1641688505976,0.060211,41527.0,41525.0,0.3494094]
[1641688510321,0.060211,41527.0,41524.0,0.30276461]
[1641688510522,0.060211,41527.0,41524.0,0.018063]
[1641688512967,0.09652844,41527.0,41524.0,0.018063]
[1641688514069,0.09652844,41527.0,41524.0,0.28561564]
[1641688514910,0.03631744,41527.0,41524.0,0.33561564]
[1641688515114,0.03631744,41527.0,41524.0,0.42230564]
[1641688515313,0.03631744,41527.0,41525.0,0.387272]
[1641688515512,0.00044675,41535.0,41526.0,1.55280541]
[1641688515715,0.00044675,41535.0,41528.0,0.00125424]
[1641688515911,0.00044675,41535.0,41534.0,0.26150545]
[1641688516111,0.00044675,41535.0,41534.0,0.1]
[1641688516311,0.00044675,41535.0,41533.0,0.018058]
[1641688516714,0.03193733,41541.0,41534.0,0.011]
[1641688517013,0.00044684,41535.0,41534.0,0.27461594]
[1641688517212,0.00044684,41535.0,41534.0,0.398272]
[1641688518011,0.00044684,41535.0,41534.0,0.387272]
[1641688518213,0.120393,41541.0,41534.0,0.73123229]
[1641688518412,0.00124426,41545.0,41537.0,0.018057]
[1641688518664,0.00124426,41545.0,41538.0,0.06018834]
[1641688519267,0.060188,41543.0,41538.0,0.06018834]
[1641688519466,0.00045567,41542.0,41538.0,0.06018834]
[1641688520466,0.00045567,41541.0,41538.0,0.06018834]
[1641688520667,0.00045567,41541.0,41538.0,0.06718834]
[1641688521468,0.00045567,41540.0,41538.0,0.06718834]
[1641688521670,0.06065067,41540.0,41538.0,0.06718834]
[1641688521871,0.06065067,41540.0,41538.0,0.06018834]
[1641688522813,0.06065066,41540.0,41538.0,0.46019972]
[1641688523015,0.06065066,41540.0,41538.0,0.51019972]
[1641688523016,0.00045566,41540.0,41538.0,0.51019972]
[1641688523815,0.00044552,41540.0,41538.0,0.50419972]
[1641688524614,0.00044552,41540.0,41538.0,0.51219972]
[1641688525516,0.00044552,41540.0,41538.0,0.11818834]
[1641688525914,0.00044552,41540.0,41538.0,0.11018834]
[1641688526469,0.00044552,41540.0,41538.0,0.49010241]
[1641688526768,0.00044552,41540.0,41538.0,0.12018834]
[1641688526967,0.00089104,41540.0,41538.0,0.12018834]
[1641688527167,0.00044552,41540.0,41538.0,0.12018834]
[1641688527665,0.00044552,41540.0,41538.0,0.18036734]
[1641688527866,0.00044552,41540.0,41538.0,0.17036734]
[1641688528067,0.00044575,41540.0,41538.0,0.11018834]
[1641688528267,0.00044575,41540.0,41538.0,0.43891542]
[1641688528467,0.00044575,41540.0,41539.0,0.387272]
[1641688528668,0.00044575,41540.0,41539.0,0.437272]
[1641688528870,0.00044575,41540.0,41539.0,0.387272]
[1641688529069,0.00044575,41540.0,41538.0,0.07018834]
[1641688529270,0.00044575,41540.0,41538.0,0.12018834]
[1641688529471,0.00044575,41540.0,41538.0,0.17018834]
[1641688529924,0.00044575,41540.0,41538.0,0.16018834]
[1641688530726,0.00044575,41540.0,41538.0,0.16918834]
[1641688530925,0.00044575,41540.0,41538.0,0.06918834]
[1641688531125,0.00044575,41540.0,41538.0,0.009]
[1641688531528,0.5704,41539.0,41538.0,0.009]
[1641688531725,0.207317,41539.0,41538.0,0.009]
[1641688531926,0.207317,41539.0,41533.0,0.27016579]
[1641688532130,0.50079869,41539.0,41533.0,0.27016579]
[1641688532726,0.50079869,41539.0,41533.0,0.009]
[1641688532926,0.0602,41535.0,41533.0,0.009]
[1641688533126,0.0602,41535.0,41534.0,0.387272]
[1641688533327,0.0602,41535.0,41533.0,0.009]
[1641688533968,0.060203,41533.0,41530.0,0.00035656]
[1641688534166,0.060203,41533.0,41531.0,0.387272]
[1641688534768,0.060203,41533.0,41531.0,0.395272]
[1641688534769,0.032,41533.0,41531.0,0.395272]
[1641688535169,0.032,41533.0,41531.0,0.45547486]
[1641688535565,0.032,41533.0,41531.0,0.008]
[1641688536267,0.060203,41533.0,41531.0,0.06020331]
[1641688536667,0.060203,41533.0,41531.0,0.06520331]
[1641688536866,0.109203,41533.0,41531.0,0.06520331]
[1641688537516,0.109203,41533.0,41531.0,0.005]
[1641688537917,0.109203,41533.0,41530.0,0.0003566]
[1641688538116,0.060204,41532.0,41530.0,0.00071319]
[1641688538316,0.57650448,41538.0,41530.0,0.00035659]
[1641688538717,0.043,41532.0,41530.0,0.00935659]
[1641688538918,0.043,41532.0,41530.0,0.00971318]
[1641688539119,0.043,41532.0,41530.0,0.02741859]
[1641688539620,0.043,41532.0,41531.0,0.837272]
[1641688539819,0.043,41532.0,41531.0,0.89746374]
[1641688540018,0.03650404,41539.0,41531.0,1.09746374]
[1641688540220,0.03650404,41539.0,41535.0,0.29651678]
[1641688540420,0.03650404,41539.0,41531.0,0.65]
[1641688540618,0.03650404,41539.0,41535.0,0.05]
[1641688540819,0.03650404,41539.0,41535.0,0.009]
[1641688541470,0.03650404,41539.0,41536.0,0.58402853]
[1641688541670,0.03650404,41539.0,41537.0,0.060188]
[1641688542071,0.00044572,41540.0,41537.0,0.160188]
[1641688542275,0.00044572,41540.0,41537.0,0.22037559]
[1641688542477,0.00044572,41540.0,41538.0,0.387272]
[1641688542674,0.00044572,41540.0,41539.0,0.8885662]
[1641688542971,0.00044572,41540.0,41539.0,0.9885662]
[1641688543174,0.00044574,41540.0,41539.0,1.0885662]
[1641688544376,0.00044575,41540.0,41539.0,1.0885662]
[1641688544576,0.00044575,41540.0,41539.0,0.4885662]
[1641688544819,0.00044575,41540.0,41539.0,0.4005662]
[1641688545023,0.00044575,41540.0,41539.0,0.399272]
[1641688545218,0.00044575,41540.0,41539.0,0.449272]
[1641688545422,0.00044575,41540.0,41539.0,0.499272]
[1641688546018,0.00044575,41540.0,41539.0,0.487272]
[1641688546819,0.00044575,41540.0,41539.0,0.497272]
[1641688548019,0.00044575,41540.0,41539.0,0.487272]
[1641688548669,0.00044575,41540.0,41539.0,0.497272]
[1641688549071,0.00044575,41540.0,41539.0,0.397272]
[1641688549670,0.00044575,41540.0,41539.0,0.01]
[1641688549870,0.06063775,41540.0,41538.0,0.06017351]
[1641688550275,0.00044575,41540.0,41538.0,0.18054705]
[1641688550674,0.00044575,41540.0,41538.0,0.24054705]
[1641688550871,0.00044574,41540.0,41538.0,0.24054705]
[1641688551072,0.00044574,41540.0,41539.0,0.387272]
[1641688551872,0.00089149,41540.0,41539.0,0.387272]
[1641688552073,0.00044575,41540.0,41539.0,0.387272]
[1641688552717,0.00044575,41540.0,41539.0,0.396272]
[1641688554620,0.00044575,41540.0,41539.0,0.387272]
[1641688554820,0.00044575,41540.0,41539.0,0.65518926]
[1641688556066,0.00044575,41540.0,41539.0,0.387272]
[1641688556866,0.00044575,41540.0,41539.0,0.397272]
[1641688557971,0.00044575,41540.0,41539.0,0.387272]
[1641688558369,0.00044575,41540.0,41539.0,0.487272]
[1641688558771,0.00044575,41540.0,41539.0,0.86256064]
[1641688558972,0.00044575,41540.0,41539.0,0.96256064]
[1641688559470,0.00044575,41540.0,41539.0,1.71256064]
[1641688559670,0.0008915,41540.0,41539.0,1.71256064]
[1641688559919,0.00044575,41540.0,41539.0,1.70256064]
[1641688560620,0.00044575,41540.0,41539.0,1.75066064]
[1641688560818,0.00044575,41540.0,41539.0,2.79090205]
[1641688561217,0.00044575,41540.0,41539.0,1.94090205]
[1641688561919,0.00044575,41540.0,41539.0,1.72590205]
[1641688562119,0.00044575,41540.0,41539.0,0.70066064]
[1641688562818,0.00044575,41540.0,41539.0,0.71666064]
[1641688563018,0.00044575,41540.0,41539.0,0.91666064]
[1641688563418,0.00044575,41540.0,41539.0,0.45262049]
[1641688563674,0.00044575,41540.0,41539.0,0.40452049]
[1641688564074,0.00044575,41540.0,41539.0,0.38852049]
[1641688564674,0.00044575,41540.0,41539.0,0.43152049]
[1641688564875,0.00044575,41540.0,41539.0,0.48152049]
[1641688565077,0.00044575,41540.0,41539.0,0.90534531]
[1641688565678,0.00044575,41540.0,41539.0,0.70534531]
[1641688565880,0.00044575,41540.0,41539.0,0.90534531]
[1641688566079,0.00044575,41540.0,41539.0,0.86234531]
[1641688566780,0.00044575,41540.0,41539.0,0.88634531]
[1641688567315,0.00044575,41540.0,41539.0,1.13634531]
[1641688568118,0.00044575,41540.0,41539.0,1.11234531]
[1641688568816,0.00044575,41540.0,41539.0,1.13734531]
[1641688569218,0.00044575,41540.0,41539.0,1.769808]
[1641688569418,2.0668,41560.0,41541.0,0.05]
[1641688569621,2.0668,41560.0,41547.0,0.00127253]
[1641688569622,0.284,41559.0,41547.0,0.00127253]
[1641688570019,0.284,41559.0,41556.0,0.40920608]
[1641688570220,1.5857,41562.0,41557.0,0.06016393]
[1641688570221,0.5964,41562.0,41557.0,0.06016393]
[1641688570418,0.5964,41562.0,41556.0,0.40920608]
[1641688570820,0.060164,41559.0,41557.0,0.060163]
[1641688572073,0.060164,41559.0,41558.0,0.06016308]
[1641688572771,0.060164,41559.0,41558.0,0.06416308]
[1641688573570,0.060164,41559.0,41558.0,0.004]
[1641688574171,0.64753555,41559.0,41558.0,0.004]
[1641688574571,0.6479901,41559.0,41558.0,0.004]
[1641688574812,0.6479901,41559.0,41558.0,0.002]
[1641688575212,0.64753555,41559.0,41558.0,0.002]
[1641688576318,0.060171,41557.0,41555.0,0.018051]
[1641688576915,0.060171,41557.0,41555.0,0.026051]
[1641688577917,0.06062555,41557.0,41555.0,0.026051]
[1641688578117,0.06062555,41557.0,41555.0,0.018051]
[1641688578771,0.06062555,41557.0,41555.0,0.026051]
[1641688578974,0.05587743,41557.0,41555.0,0.026051]
[1641688579373,0.00044443,41557.0,41555.0,0.026051]
[1641688580172,0.00044443,41557.0,41555.0,0.018051]
[1641688580771,0.00044443,41557.0,41555.0,0.026051]
[1641688582174,0.00044443,41557.0,41555.0,0.018051]
[1641688582415,0.06061066,41557.0,41555.0,0.018051]
[1641688582914,0.06061066,41557.0,41555.0,0.027051]
[1641688584118,0.06061066,41557.0,41555.0,0.018051]
[1641688584813,0.06061066,41557.0,41555.0,0.026051]
[1641688585416,0.06061066,41557.0,41555.0,0.008]
[1641688585616,0.936917,41556.0,41555.0,0.008]
[1641688586069,0.936917,41556.0,41541.0,0.28509232]
[1641688586270,0.120365,41549.0,41546.0,0.28258152]
[1641688586471,0.29432828,41555.0,41547.0,0.387272]
[1641688586676,0.086917,41554.0,41546.0,0.34276052]
[1641688586873,0.006,41549.0,41546.0,0.072179]
[1641688587074,0.006,41549.0,41548.0,0.23780998]
[1641688587272,0.006,41549.0,41548.0,0.68526061]
[1641688587472,0.006,41549.0,41548.0,0.44745063]
[1641688587876,0.00644465,41549.0,41548.0,0.44745063]
[1641688588075,0.00044465,41549.0,41548.0,0.44745063]
[1641688588478,0.00044465,41549.0,41548.0,0.54745063]
[1641688588878,0.00044465,41549.0,41548.0,0.45945063]
[1641688589279,0.00044465,41549.0,41548.0,0.7345416]
[1641688589476,0.00044465,41549.0,41548.0,0.45945063]
[1641688590325,0.00044465,41549.0,41548.0,0.44745063]
[1641688590929,0.00044465,41549.0,41548.0,0.398272]
[1641688591932,0.00044465,41549.0,41548.0,0.011]
[1641688592128,0.35044465,41549.0,41545.0,0.018056]
[1641688592328,0.35044465,41549.0,41540.0,0.03733595]
[1641688592329,0.35044465,41549.0,41540.0,0.51276926]
[1641688592529,0.00044465,41549.0,41543.0,0.30866765]
[1641688592729,0.00044465,41549.0,41543.0,0.25948786]
[1641688592931,0.00044465,41549.0,41546.0,0.42562241]
[1641688593128,0.00044465,41549.0,41547.0,0.018053]
[1641688593329,0.06062165,41549.0,41547.0,0.07822841]
[1641688593570,0.060177,41549.0,41547.0,0.07822841]
[1641688594473,0.06062165,41549.0,41547.0,0.07822841]
[1641688594873,0.10962165,41549.0,41547.0,0.08422841]
[1641688596173,0.10962165,41549.0,41548.0,0.05]
[1641688596174,0.00044465,41549.0,41548.0,0.05]
[1641688596374,0.00044465,41549.0,41548.0,0.437272]
[1641688596573,0.00044465,41549.0,41548.0,0.82858422]
[1641688597076,0.00044465,41549.0,41548.0,0.84058422]
[1641688597324,0.00044465,41549.0,41548.0,0.69058422]
[1641688597528,0.00044465,41549.0,41548.0,0.74058422]
[1641688597725,0.0008893,41549.0,41548.0,0.79058422]
[1641688597924,0.00044465,41549.0,41548.0,0.79058422]
[1641688598125,0.00044465,41549.0,41548.0,0.89058422]
[1641688598326,0.00044465,41549.0,41548.0,0.77858422]
[1641688598925,0.00044465,41549.0,41548.0,0.79058422]
[1641688599528,0.00044465,41549.0,41548.0,0.399272]
[1641688599728,0.00044465,41549.0,41548.0,0.499272]
[1641688600127,0.00044465,41549.0,41548.0,0.487272]
[1641688600926,0.00044465,41549.0,41548.0,0.76946828]
[1641688602172,0.00044465,41549.0,41548.0,0.75746828]
[1641688602872,0.00044465,41549.0,41548.0,0.76946828]
[1641688604173,0.00044465,41549.0,41548.0,0.75746828]
[1641688605021,0.00044465,41549.0,41548.0,0.76946828]
[1641688605822,0.00044465,41549.0,41548.0,1.16946828]
[1641688606221,0.00044465,41549.0,41548.0,0.85746828]
[1641688607022,0.00044465,41549.0,41548.0,0.87146828]
[1641688608025,0.00044465,41549.0,41548.0,1.38301259]
[1641688608226,0.00044465,41549.0,41548.0,1.36901259]
[1641688608428,0.12154152,41563.0,41548.0,1.36901259]
[1641688608429,0.000696,41565.0,41549.0,0.85]
[1641688608679,0.000696,41565.0,41564.0,0.00120594]
[1641688608879,0.000696,41565.0,41564.0,0.10323594]
[1641688609075,0.000696,41565.0,41564.0,0.65143735]
[1641688609277,0.000696,41565.0,41564.0,1.42393408]
[1641688610076,0.000696,41565.0,41564.0,1.52393408]
[1641688610278,0.000696,41565.0,41564.0,1.62393408]
[1641688610875,0.000696,41565.0,41564.0,1.63293408]
[1641688611279,0.12029,41576.0,41564.0,1.63293408]
[1641688611280,0.124282,41579.0,41570.0,0.06014136]
[1641688611488,0.004,41579.0,41577.0,0.00123144]
[1641688611676,0.004,41579.0,41577.0,0.01927044]
[1641688612078,0.004,41579.0,41577.0,0.06927044]
[1641688612322,0.004,41579.0,41578.0,1.02226654]
[1641688612623,0.004,41579.0,41578.0,1.85516004]
[1641688612826,0.004,41589.0,41581.0,0.00123447]
[1641688613121,0.004,41589.0,41581.0,0.43850647]
[1641688613521,0.004,41589.0,41581.0,0.64861847]
[1641688613723,0.004,41589.0,41588.0,0.25364059]
[1641688613922,0.004,41589.0,41584.0,0.31919622]
[1641688614121,0.004,41589.0,41584.0,0.36919622]
[1641688614324,0.004,41589.0,41585.0,0.387272]
[1641688614722,0.004,41589.0,41586.0,0.060118]
[1641688614923,0.004,41589.0,41586.0,0.13825587]
[1641688615124,0.004,41589.0,41585.0,0.009]
[1641688615326,0.086917,41588.0,41585.0,0.009]
[1641688615526,0.08737044,41588.0,41585.0,0.009]
[1641688616196,0.00045344,41588.0,41582.0,0.29095557]
[1641688616372,0.00045344,41588.0,41585.0,0.0601233]
[1641688616972,0.00045344,41588.0,41586.0,0.27036174]
[1641688617171,0.00045344,41588.0,41586.0,0.30643174]
[1641688617874,0.00045344,41588.0,41586.0,0.36655174]
[1641688618173,0.00045344,41587.0,41586.0,0.6384011]
[1641688618373,0.00045344,41587.0,41586.0,1.02694829]
[1641688618775,0.00044334,41588.0,41586.0,0.75509893]
[1641688618972,0.00044334,41588.0,41587.0,0.387272]
[1641688619375,0.00044334,41588.0,41587.0,0.65787306]
[1641688619574,0.00044334,41588.0,41587.0,0.387272]
[1641688620926,0.004,41589.0,41588.0,0.6654361]
[1641688621126,0.004,41589.0,41588.0,1.0527081]
[1641688621528,0.004,41589.0,41588.0,1.1527081]
[1641688622129,0.004,41589.0,41588.0,1.43030891]
[1641688622328,0.004,41589.0,41588.0,1.43160867]
[1641688622927,0.004,41589.0,41588.0,1.44030891]
[1641688623328,0.004,41589.0,41588.0,1.0627081]
[1641688624167,0.004,41589.0,41588.0,1.0527081]
[1641688624968,0.004,41589.0,41588.0,1.0627081]
[1641688625368,0.004,41589.0,41588.0,1.33222408]
[1641688625970,0.004,41589.0,41588.0,1.1127081]
[1641688626170,0.004,41589.0,41588.0,1.1527081]
[1641688626872,0.004,41589.0,41588.0,1.1627081]
[1641688627719,0.004,41589.0,41588.0,1.2627081]
[1641688628020,0.004,41589.0,41588.0,1.1627081]
[1641688628220,0.004,41589.0,41588.0,1.1527081]
[1641688628420,0.004,41589.0,41588.0,1.2527081]
[1641688629018,0.004,41589.0,41588.0,1.2637081]
[1641688630219,0.00354868,41589.0,41588.0,1.2637081]
[1641688631083,0.00354868,41589.0,41588.0,1.2747081]
[1641688631282,0.00354868,41589.0,41588.0,1.2527081]
[1641688632081,0.00354868,41589.0,41588.0,1.25397104]
[1641688632980,0.00354868,41589.0,41588.0,1.26497104]
[1641688633183,0.00354868,41589.0,41588.0,1.32507704]
[1641688633783,0.00354868,41589.0,41588.0,1.26497104]
[1641688634281,0.00354868,41589.0,41588.0,1.31407504]
[1641688634481,1.715e-05,41594.0,41589.0,1.187272]
[1641688634680,1.715e-05,41594.0,41590.0,0.018033]
[1641688635229,0.00044243,41593.0,41590.0,0.018033]
[1641688635426,0.00044243,41593.0,41591.0,0.73951979]
[1641688635625,0.00044243,41593.0,41591.0,0.88951979]
[1641688636226,1.715e-05,41594.0,41591.0,0.88951979]
[1641688636627,0.00396021,41599.0,41592.0,0.01803]
[1641688636828,0.00396021,41599.0,41593.0,0.060101]
[1641688637129,0.00396021,41599.0,41596.0,0.00128069]
[1641688637327,0.00396021,41599.0,41597.0,0.44017758]
[1641688637529,0.0002406,41598.0,41597.0,0.6002777]
[1641688637727,0.0002406,41598.0,41597.0,1.34601982]
[1641688638777,0.0002406,41598.0,41597.0,1.40612082]
[1641688638978,0.0002406,41598.0,41597.0,1.41712082]
[1641688639376,0.00069183,41598.0,41597.0,1.41712082]
[1641688642319,0.00069183,41598.0,41597.0,1.40612082]
[1641688643120,0.00069183,41598.0,41597.0,1.31712082]
[1641688643320,0.00069183,41598.0,41597.0,1.41712082]
[1641688643921,0.00068177,41598.0,41597.0,1.41712082]
[1641688644323,0.00068177,41598.0,41597.0,1.40612082]
[1641688645121,0.00068177,41598.0,41597.0,1.41712082]
[1641688645922,0.00068177,41598.0,41597.0,1.31712082]
[1641688646172,0.00068177,41598.0,41597.0,1.30612082]
[1641688646772,0.00068177,41598.0,41597.0,1.20612082]
[1641688646974,0.00068177,41598.0,41597.0,0.447373]
[1641688647173,0.00068177,41598.0,41597.0,0.01]
[1641688647373,0.30068177,41598.0,41597.0,0.01]
[1641688647972,0.00068177,41598.0,41597.0,0.30001596]
[1641688648373,0.00068199,41598.0,41597.0,0.67728796]
[1641688648974,0.00068199,41598.0,41597.0,0.68628796]
[1641688649178,0.00068199,41598.0,41597.0,0.73628796]
[1641688649375,0.00068199,41598.0,41597.0,0.78628796]
[1641688649577,0.00068199,41598.0,41597.0,0.68628796]
[1641688649822,0.00068199,41598.0,41597.0,0.73628796]
[1641688650225,0.00068199,41598.0,41597.0,0.73128796]
[1641688650422,0.00068199,41598.0,41597.0,0.67728796]
[1641688650625,0.06078999,41598.0,41597.0,0.67728796]
[1641688650823,0.06078999,41598.0,41597.0,0.29001596]
[1641688651026,0.06078999,41598.0,41597.0,0.29701596]
[1641688651424,0.00068199,41598.0,41597.0,0.29701596]
[1641688652626,0.00112338,41598.0,41597.0,0.29701596]
[1641688652828,0.00068199,41598.0,41597.0,0.39701596]
[1641688653026,0.00068199,41598.0,41597.0,0.49701596]
[1641688653225,0.00068199,41598.0,41597.0,0.88428796]
[1641688653425,0.00068199,41598.0,41597.0,0.78428796]
[1641688654282,0.00068199,41598.0,41597.0,0.67728796]
[1641688654482,0.00068199,41598.0,41597.0,0.72728796]
[1641688655084,0.00068199,41598.0,41597.0,0.73528796]
[1641688655284,0.00068199,41598.0,41597.0,0.78528796]
[1641688655483,0.00068199,41598.0,41597.0,0.88528796]
[1641688655683,0.00068199,41598.0,41597.0,0.78528796]
[1641688656286,0.00068199,41598.0,41597.0,0.77728796]
[1641688656985,0.00068199,41598.0,41597.0,0.78728796]
[1641688657622,0.00068199,41598.0,41597.0,0.73728796]
[1641688657821,0.00068199,41598.0,41597.0,0.78728796]
[1641688658221,0.00068199,41598.0,41597.0,0.68728796]
[1641688658421,0.00068199,41598.0,41597.0,0.67728796]
[1641688659122,0.00068199,41598.0,41597.0,0.68628796]
[1641688659722,0.00068199,41598.0,41597.0,0.78628796]
[1641688660122,0.00068199,41598.0,41597.0,0.68628796]
[1641688660324,0.00068199,41598.0,41597.0,0.67728796]
[1641688660725,0.06078799,41598.0,41597.0,0.67728796]
[1641688661171,0.06078799,41598.0,41597.0,0.68528796]
[1641688661773,0.00068199,41598.0,41597.0,0.68528796]
[1641688662474,0.00112338,41598.0,41597.0,0.68528796]
[1641688662673,0.00068199,41598.0,41597.0,0.68528796]
[1641688662972,0.00068199,41598.0,41597.0,0.67728796]
[1641688663174,0.00068199,41598.0,41597.0,0.68528796]
[1641688664372,0.00068199,41598.0,41597.0,0.67728796]
[1641688665035,0.00068199,41598.0,41597.0,0.68528796]
[1641688665637,0.00068199,41598.0,41597.0,0.008]
[1641688665838,0.34311027,41598.0,41597.0,0.008]
[1641688666033,0.13569899,41598.0,41597.0,0.008]
[1641688666235,0.85,41597.0,41588.0,1.17240936]
[1641688666437,3.35178335,41590.0,41588.0,0.66580308]
[1641688666634,0.086917,41589.0,41588.0,0.66580308]
[1641688667035,0.0871576,41589.0,41588.0,0.67580308]
[1641688667435,0.1472806,41589.0,41588.0,0.67580308]
[1641688668035,0.44227001,41589.0,41588.0,0.67580317]
[1641688668336,0.44227001,41589.0,41588.0,0.66580317]
[1641688668578,0.94227001,41589.0,41588.0,0.66080317]
[1641688668778,0.44227001,41589.0,41588.0,0.66080317]
[1641688668977,0.49037001,41589.0,41588.0,0.66080317]
[1641688669177,1.35261176,41589.0,41588.0,0.66880317]
[1641688669378,1.95239234,41589.0,41588.0,0.66880317]
[1641688669577,1.61846588,41589.0,41588.0,0.66880317]
[1641688669779,0.27347647,41589.0,41588.0,0.66880317]
[1641688669978,0.55153886,41589.0,41588.0,0.66880317]
[1641688670181,0.55153886,41589.0,41588.0,0.66917023]
[1641688670480,0.54053886,41589.0,41588.0,0.66117023]
[1641688670678,0.54053886,41589.0,41588.0,0.66080316]
[1641688671077,0.55353886,41589.0,41588.0,0.66080316]
[1641688671282,0.27423472,41589.0,41588.0,0.66080316]
[1641688672326,0.26123472,41589.0,41588.0,0.66117022]
[1641688672831,0.11419472,41589.0,41588.0,0.66117022]
[1641688673026,0.11419472,41589.0,41588.0,0.66080316]
[1641688673225,0.12619472,41589.0,41588.0,0.66080316]
[1641688673427,0.12619472,41589.0,41588.0,0.66117022]
[1641688673625,0.12619472,41589.0,41588.0,0.66080316]
[1641688674325,0.11419472,41589.0,41588.0,0.66080316]
[1641688675129,0.12719472,41589.0,41588.0,0.66080316]
[1641688676379,0.06609472,41589.0,41588.0,0.66080316]
[1641688677175,0.07609472,41589.0,41588.0,0.66080316]
[1641688678477,0.06609472,41589.0,41588.0,0.66080316]
[1641688679078,0.07509472,41589.0,41588.0,0.66080316]
[1641688679928,0.07509472,41589.0,41588.0,0.66117022]
[1641688680134,0.07509472,41589.0,41588.0,0.66080316]
[1641688680536,0.0002406,41589.0,41588.0,0.66080316]
[1641688680731,0.0002406,41589.0,41588.0,0.76080316]
[1641688681031,0.0002406,41591.0,41589.0,0.018033]
[1641688681233,0.0002406,41591.0,41590.0,0.387272]
[1641688681432,0.0002406,41591.0,41590.0,0.487272]
[1641688684082,0.0002406,41597.0,41590.0,0.547387]
[1641688684280,0.0002406,41597.0,41591.0,0.018035]
[1641688684281,0.060114,41593.0,41591.0,0.018035]
[1641688684482,0.060114,41593.0,41591.0,0.068035]
[1641688684880,0.060114,41593.0,41591.0,0.28245867]
[1641688685081,0.060114,41593.0,41591.0,0.33245867]
[1641688685281,0.065114,41593.0,41591.0,0.33245867]
[1641688685681,0.065114,41593.0,41591.0,0.28245867]
[1641688686482,0.060114,41593.0,41591.0,0.28245867]
[1641688687085,0.0002406,41592.0,41591.0,0.28245867]
[1641688687333,0.0002406,41592.0,41591.0,0.26442367]
[1641688688935,0.0002406,41592.0,41591.0,0.31442367]
[1641688689134,0.0032406,41592.0,41591.0,0.85169567]
[1641688690536,0.0002406,41592.0,41591.0,0.85169567]
[1641688690935,0.0002406,41592.0,41591.0,0.75169567]
[1641688691183,0.0002406,41592.0,41591.0,0.85169567]
[1641688691380,0.0002406,41592.0,41591.0,1.16797038]
[1641688691580,0.00044133,41598.0,41591.0,1.16797038]
[1641688691780,0.0002406,41595.0,41592.0,0.387272]
[1641688691983,0.0002406,41595.0,41593.0,0.12019771]
[1641688692184,0.0002406,41595.0,41594.0,0.387272]
[1641688692382,0.0002406,41595.0,41594.0,0.487272]
[1641688692582,0.0002406,41595.0,41594.0,0.587272]
[1641688694583,0.0002406,41597.0,41594.0,0.587272]
[1641688695825,0.0002406,41597.0,41594.0,0.487272]
[1641688696427,0.0002406,41597.0,41594.0,0.387272]
[1641688697825,0.0002406,41597.0,41594.0,0.487272]
[1641688698428,0.0002406,41597.0,41594.0,0.587272]
[1641688700782,0.0002406,41597.0,41594.0,0.90432172]
[1641688700980,0.0002406,41597.0,41596.0,1.18856974]
[1641688701381,0.0002406,41597.0,41596.0,1.38856974]
[1641688702081,0.0002406,41597.0,41596.0,1.44866274]
[1641688702345,0.0001,41604.0,41603.0,0.85486219]
[1641688702542,0.00021001,41607.0,41603.0,0.85486219]
[1641688702543,0.00020001,41605.0,41604.0,0.00127275]
[1641688702742,0.00020001,41605.0,41604.0,1.13854475]
[1641688702942,0.00020001,41605.0,41604.0,1.23854475]
[1641688703244,0.00020001,41605.0,41604.0,0.50454475]
[1641688703443,0.0001,41607.0,41605.0,1.237272]
[1641688703643,0.00411001,41609.0,41607.0,0.45]
[1641688703944,0.00411001,41609.0,41608.0,0.38847429]
[1641688704145,0.00411001,41609.0,41608.0,0.58847429]
[1641688704543,0.00411001,41609.0,41608.0,0.90471459]
[1641688704743,0.00411001,41609.0,41608.0,0.92840459]
[1641688705142,0.00411001,41609.0,41608.0,0.94840459]
[1641688705547,0.00411001,41609.0,41608.0,0.53216429]
[1641688705947,0.00411001,41609.0,41608.0,0.50847429]
[1641688706680,0.00411001,41609.0,41608.0,0.487272]
[1641688706681,0.00456013,41609.0,41608.0,0.487272]
[1641688707277,0.00456013,41609.0,41608.0,0.403272]
[1641688708077,0.00456013,41609.0,41608.0,0.4045161]
[1641688708480,0.00456013,41609.0,41608.0,0.4885161]
[1641688709280,0.00456013,41609.0,41608.0,0.5075161]
[1641688710233,0.00456013,41609.0,41608.0,0.506272]
[1641688710429,0.00456013,41609.0,41608.0,0.487272]
[1641688710832,0.00500022,41609.0,41608.0,0.487272]
[1641688711029,0.0045501,41609.0,41608.0,0.487272]
[1641688711231,0.0045501,41609.0,41608.0,0.555272]